[Event "Early-Titled-Tuesday-Blitz-September-05-2023"]
[Site "Chess.com"]
[Date "2023.09.05"]
[Round "10"]
[White "Thecourseoisildur"]
[Black "IM_Tissir"]
[Result "0-1"]
[WhiteElo "2579"]
[BlackElo "2481"]
[TimeControl "180+1"]
[EndTime "9:55:08 PDT"]
[Termination "IM_Tissir won on time"]

1. e4 {[%clk 0:03:00.9]} 1... c5 {[%clk 0:02:57.8]} 2. Nf3 {[%clk 0:03:01.4]}
2... e6 {[%clk 0:02:49.6]} 3. d4 {[%clk 0:03:00.1]} 3... cxd4 {[%clk 0:02:49.8]}
4. Nxd4 {[%clk 0:03:01]} 4... Nf6 {[%clk 0:02:50.2]} 5. Nc3 {[%clk 0:03:01.4]}
5... d6 {[%clk 0:02:50.8]} 6. Be2 {[%clk 0:02:59.8]} 6... a6 {[%clk 0:02:50.5]}
7. Be3 {[%clk 0:02:59.7]} 7... Qc7 {[%clk 0:02:50.7]} 8. O-O {[%clk 0:02:58.4]}
8... Be7 {[%clk 0:02:51.1]} 9. f4 {[%clk 0:02:58.1]} 9... Nc6 {[%clk 0:02:50.4]}
10. Kh1 {[%clk 0:02:56.9]} 10... O-O {[%clk 0:02:49.3]} 11. Qe1 {[%clk
0:02:56.6]} 11... Bd7 {[%clk 0:02:44.2]} 12. Qg3 {[%clk 0:02:55.4]} 12... Nxd4
{[%clk 0:02:42.1]} 13. Bxd4 {[%clk 0:02:55]} 13... Bc6 {[%clk 0:02:43]} 14. Rae1
{[%clk 0:02:52.3]} 14... Rae8 {[%clk 0:02:14.9]} 15. Bd3 {[%clk 0:02:47.5]}
15... g6 {[%clk 0:01:59.5]} 16. Nd1 {[%clk 0:02:45.1]} 16... d5 {[%clk
0:01:49.9]} 17. e5 {[%clk 0:02:35.7]} 17... Ne4 {[%clk 0:01:48.5]} 18. Qe3
{[%clk 0:02:25.5]} 18... Bb5 {[%clk 0:01:44]} 19. Nf2 {[%clk 0:02:18.7]} 19...
Nxf2+ {[%clk 0:01:31.7]} 20. Qxf2 {[%clk 0:02:12.1]} 20... Bxd3 {[%clk
0:01:28.7]} 21. cxd3 {[%clk 0:02:13]} 21... Rc8 {[%clk 0:01:29.2]} 22. Qg3
{[%clk 0:02:01.7]} 22... Qd8 {[%clk 0:01:23.2]} 23. Rc1 {[%clk 0:01:27.4]} 23...
Qa5 {[%clk 0:01:13.1]} 24. f5 {[%clk 0:01:14.3]} 24... exf5 {[%clk 0:00:49.9]}
25. e6 {[%clk 0:01:06.3]} 25... f6 {[%clk 0:00:36.3]} 26. a3 {[%clk 0:00:45.1]}
26... Qa4 {[%clk 0:00:32.4]} 27. Bc3 {[%clk 0:00:36]} 27... d4 {[%clk
0:00:30.1]} 28. Bd2 {[%clk 0:00:12.7]} 28... Rc6 {[%clk 0:00:26.4]} 29. Rxc6
{[%clk 0:00:09.1]} 29... Qxc6 {[%clk 0:00:26]} 30. Rxf5 {[%clk 0:00:08.2]} 30...
Qxe6 {[%clk 0:00:23]} 31. Rf1 {[%clk 0:00:07.8]} 31... Rc8 {[%clk 0:00:20.5]}
32. Re1 {[%clk 0:00:06.5]} 32... Qd7 {[%clk 0:00:15]} 33. h4 {[%clk 0:00:02.4]}
33... Rc2 {[%clk 0:00:14.4]} 34. Bf4 {[%clk 0:00:02.5]} 34... Kf7 {[%clk
0:00:11.7]} 35. Bh6 {[%clk 0:00:02.6]} 35... Qd6 {[%clk 0:00:09.4]} 36. Qf3
{[%clk 0:00:02.9]} 36... Qc6 {[%clk 0:00:09]} 37. Qg3 {[%clk 0:00:01.9]} 37...
Bd6 {[%clk 0:00:08.8]} 38. Qh3 {[%clk 0:00:02]} 38... f5 {[%clk 0:00:08.5]} 39.
h5 {[%clk 0:00:01.9]} 39... Qd5 {[%clk 0:00:04]} 40. hxg6+ {[%clk 0:00:02.7]}
40... hxg6 {[%clk 0:00:04.1]} 41. Bg5 {[%clk 0:00:03.1]} 41... Bf8 {[%clk
0:00:04]} 42. Qh7+ {[%clk 0:00:02.5]} 42... Bg7 {[%clk 0:00:04.4]} 43. Qh2
{[%clk 0:00:02.7]} 43... f4 {[%clk 0:00:03.5]} 44. Re7+ {[%clk 0:00:02.3]} 44...
Kg8 {[%clk 0:00:03.1]} 45. Re8+ {[%clk 0:00:02.1]} 45... Kf7 {[%clk 0:00:02.7]}
46. Re1 {[%clk 0:00:02.5]} 46... Qxg5 {[%clk 0:00:01.8]} 47. Qh3 {[%clk
0:00:02.4]} 47... Qf5 {[%clk 0:00:02]} 48. Qh4 {[%clk 0:00:02.3]} 48... Bf6
{[%clk 0:00:01.1]} 49. Qh7+ {[%clk 0:00:02.3]} 49... Bg7 {[%clk 0:00:01.5]} 50.
Qh4 {[%clk 0:00:02.6]} 50... Qf6 {[%clk 0:00:01.5]} 51. Qg4 {[%clk 0:00:02.7]}
51... f3 {[%clk 0:00:01.8]} 52. Qd7+ {[%clk 0:00:02.4]} 52... Kg8 {[%clk
0:00:02.4]} 0-1

[Event "Early-Titled-Tuesday-Blitz-September-05-2023"]
[Site "Chess.com"]
[Date "2023.09.05"]
[Round "10"]
[White "Mesa_1"]
[Black "Rosh1610"]
[Result "1-0"]
[WhiteElo "2584"]
[BlackElo "2464"]
[TimeControl "180+1"]
[EndTime "9:55:08 PDT"]
[Termination "Mesa_1 won by checkmate"]

1. e4 {[%clk 0:02:58.8]} 1... c5 {[%clk 0:02:55.6]} 2. Nf3 {[%clk 0:02:59]} 2...
d6 {[%clk 0:02:55.5]} 3. d4 {[%clk 0:02:58.3]} 3... cxd4 {[%clk 0:02:56.4]} 4.
Nxd4 {[%clk 0:02:59.2]} 4... Nf6 {[%clk 0:02:57]} 5. Nc3 {[%clk 0:02:59.9]} 5...
a6 {[%clk 0:02:56.7]} 6. Bg5 {[%clk 0:02:42.7]} 6... e6 {[%clk 0:02:55.9]} 7. f4
{[%clk 0:02:35.9]} 7... Be7 {[%clk 0:02:53.6]} 8. Qf3 {[%clk 0:02:36.6]} 8...
Qc7 {[%clk 0:02:53.8]} 9. O-O-O {[%clk 0:02:35.9]} 9... Nbd7 {[%clk 0:02:53.9]}
10. g4 {[%clk 0:02:35.1]} 10... h6 {[%clk 0:02:52.5]} 11. Bxf6 {[%clk
0:02:34.5]} 11... Bxf6 {[%clk 0:02:53.4]} 12. h4 {[%clk 0:02:31.9]} 12... Nb6
{[%clk 0:02:52.8]} 13. g5 {[%clk 0:02:31.7]} 13... Bxd4 {[%clk 0:02:49.4]} 14.
Rxd4 {[%clk 0:02:32.6]} 14... Qc5 {[%clk 0:02:46.8]} 15. Rd3 {[%clk 0:02:26.3]}
15... Bd7 {[%clk 0:02:46.2]} 16. Be2 {[%clk 0:02:20.1]} 16... hxg5 {[%clk
0:02:40.9]} 17. hxg5 {[%clk 0:02:13.9]} 17... O-O-O {[%clk 0:02:38.7]} 18. Rhd1
{[%clk 0:01:52]} 18... Bc6 {[%clk 0:02:35.2]} 19. a3 {[%clk 0:01:50.8]} 19...
Nc4 {[%clk 0:02:25.1]} 20. Rd4 {[%clk 0:01:45.8]} 20... b5 {[%clk 0:01:58.8]}
21. b4 {[%clk 0:01:37.8]} 21... Qb6 {[%clk 0:01:57.7]} 22. Bxc4 {[%clk
0:01:37.9]} 22... bxc4 {[%clk 0:01:58.6]} 23. Rxc4 {[%clk 0:01:38.8]} 23... Kb7
{[%clk 0:01:56.9]} 24. Rcd4 {[%clk 0:01:34.7]} 24... Qc7 {[%clk 0:01:48.2]} 25.
Qd3 {[%clk 0:01:32.6]} 25... Rh4 {[%clk 0:01:38.1]} 26. e5 {[%clk 0:01:13.4]}
26... d5 {[%clk 0:01:33.7]} 27. a4 {[%clk 0:01:07.7]} 27... Rdh8 {[%clk
0:01:28.4]} 28. b5 {[%clk 0:01:05.6]} 28... axb5 {[%clk 0:01:26.9]} 29. axb5
{[%clk 0:01:06.5]} 29... Bd7 {[%clk 0:01:26.2]} 30. Ra4 {[%clk 0:01:03.1]} 30...
Qc5 {[%clk 0:01:06.2]} 31. Ne4 {[%clk 0:01:01.9]} 31... dxe4 {[%clk 0:00:57.2]}
32. Qxd7+ {[%clk 0:00:59.4]} 32... Kb8 {[%clk 0:00:57.7]} 33. b6 {[%clk
0:00:33.7]} 33... Qe3+ {[%clk 0:00:56.4]} 34. Kb1 {[%clk 0:00:23.7]} 34... Qxb6+
{[%clk 0:00:55]} 35. Ka2 {[%clk 0:00:23.9]} 35... Rh2 {[%clk 0:00:23.3]} 36. Rd2
{[%clk 0:00:24.1]} 36... Rh1 {[%clk 0:00:14.5]} 37. Qd6+ {[%clk 0:00:18.5]}
37... Qxd6 {[%clk 0:00:14.6]} 38. Rxd6 {[%clk 0:00:18.1]} 38... R8h2 {[%clk
0:00:12.3]} 39. Rb4+ {[%clk 0:00:18.1]} 39... Kc7 {[%clk 0:00:11.8]} 40. Rc4+
{[%clk 0:00:18.3]} 40... Kb7 {[%clk 0:00:12.2]} 41. Rd7+ {[%clk 0:00:18]} 41...
Kb6 {[%clk 0:00:12.6]} 42. Rd8 {[%clk 0:00:17.3]} 42... e3 {[%clk 0:00:12]} 43.
Rb8+ {[%clk 0:00:17.5]} 43... Ka7 {[%clk 0:00:12.1]} 44. Rb3 {[%clk 0:00:16.9]}
44... Rxc2+ {[%clk 0:00:05.3]} 45. Rxc2 {[%clk 0:00:17.8]} 45... e2 {[%clk
0:00:03.2]} 46. Rxe2 {[%clk 0:00:16.5]} 46... Rc1 {[%clk 0:00:02.9]} 47. Re4
{[%clk 0:00:16.2]} 47... Rc6 {[%clk 0:00:03.4]} 48. Ra4+ {[%clk 0:00:15.9]}
48... Ra6 {[%clk 0:00:04.3]} 49. Rxa6+ {[%clk 0:00:16.3]} 49... Kxa6 {[%clk
0:00:05.2]} 50. f5 {[%clk 0:00:16.6]} 50... exf5 {[%clk 0:00:05.2]} 51. g6
{[%clk 0:00:17.5]} 51... fxg6 {[%clk 0:00:05.5]} 52. e6 {[%clk 0:00:17.9]} 52...
f4 {[%clk 0:00:06.2]} 53. e7 {[%clk 0:00:18.8]} 53... f3 {[%clk 0:00:07]} 54.
e8=Q {[%clk 0:00:19.7]} 54... f2 {[%clk 0:00:07.9]} 55. Qc6+ {[%clk 0:00:20]}
55... Ka7 {[%clk 0:00:07.7]} 56. Qb7# {[%clk 0:00:20.3]} 1-0

[Event "Early-Titled-Tuesday-Blitz-September-05-2023"]
[Site "Chess.com"]
[Date "2023.09.05"]
[Round "10"]
[White "Daniel_Salinas"]
[Black "noblerone"]
[Result "1/2-1/2"]
[WhiteElo "2347"]
[BlackElo "2526"]
[TimeControl "180+1"]
[EndTime "9:55:17 PDT"]
[Termination "Game drawn by agreement"]

1. c4 {[%clk 0:02:50.3]} 1... c6 {[%clk 0:02:59.6]} 2. d4 {[%clk 0:02:48.3]}
2... d5 {[%clk 0:02:59.6]} 3. Nf3 {[%clk 0:02:49]} 3... Nf6 {[%clk 0:02:59.6]}
4. g3 {[%clk 0:02:49.6]} 4... Bf5 {[%clk 0:02:51.7]} 5. Nc3 {[%clk 0:02:48.4]}
5... e6 {[%clk 0:02:51.7]} 6. Qb3 {[%clk 0:02:47.3]} 6... Qb6 {[%clk 0:02:50.9]}
7. c5 {[%clk 0:02:47.6]} 7... Qc7 {[%clk 0:02:48.8]} 8. Bf4 {[%clk 0:02:47.1]}
8... Qc8 {[%clk 0:02:49.3]} 9. Bg2 {[%clk 0:02:44.7]} 9... Nbd7 {[%clk
0:02:49.7]} 10. Qd1 {[%clk 0:02:40.6]} 10... b6 {[%clk 0:02:41.8]} 11. b4 {[%clk
0:02:29.9]} 11... a5 {[%clk 0:02:26.1]} 12. a3 {[%clk 0:02:30.3]} 12... b5
{[%clk 0:02:26.3]} 13. Nh4 {[%clk 0:02:24.9]} 13... Bg6 {[%clk 0:02:22.2]} 14.
Nxg6 {[%clk 0:02:24]} 14... hxg6 {[%clk 0:02:23.1]} 15. O-O {[%clk 0:02:21.9]}
15... Be7 {[%clk 0:02:21.4]} 16. e4 {[%clk 0:02:20.3]} 16... dxe4 {[%clk
0:02:21]} 17. Nxe4 {[%clk 0:02:21.2]} 17... Nxe4 {[%clk 0:02:11.8]} 18. Bxe4
{[%clk 0:02:21.1]} 18... Nf6 {[%clk 0:02:09.4]} 19. Bg2 {[%clk 0:02:11.5]} 19...
Qd7 {[%clk 0:02:06.4]} 20. Be5 {[%clk 0:02:08.1]} 20... O-O {[%clk 0:01:58.5]}
21. h4 {[%clk 0:01:56.4]} 21... axb4 {[%clk 0:01:49.4]} 22. axb4 {[%clk
0:01:52.2]} 22... Rxa1 {[%clk 0:01:49.4]} 23. Qxa1 {[%clk 0:01:52.1]} 23... Nd5
{[%clk 0:01:49.6]} 24. Re1 {[%clk 0:01:28.6]} 24... Nxb4 {[%clk 0:01:40.9]} 25.
Qd1 {[%clk 0:01:20.4]} 25... Bf6 {[%clk 0:01:30.8]} 26. Bxf6 {[%clk 0:00:50.4]}
26... gxf6 {[%clk 0:01:30]} 27. Qd2 {[%clk 0:00:49.4]} 27... Nd5 {[%clk
0:01:19.8]} 28. Qh6 {[%clk 0:00:49]} 28... Ra8 {[%clk 0:00:54.6]} 29. h5 {[%clk
0:00:46.9]} 29... gxh5 {[%clk 0:00:20.4]} 30. Re4 {[%clk 0:00:46.4]} 30... Qe7
{[%clk 0:00:13.4]} 31. Rh4 {[%clk 0:00:46.3]} 31... Qf8 {[%clk 0:00:12.9]} 32.
Qxh5 {[%clk 0:00:44.6]} 32... Qg7 {[%clk 0:00:13.2]} 33. Rg4 {[%clk 0:00:44.5]}
33... Ra1+ {[%clk 0:00:13.5]} 34. Kh2 {[%clk 0:00:41.6]} 34... Ra2 {[%clk
0:00:10.8]} 35. Rxg7+ {[%clk 0:00:40.4]} 35... Kxg7 {[%clk 0:00:11.7]} 36. Bxd5
{[%clk 0:00:40.9]} 36... cxd5 {[%clk 0:00:10.7]} 37. Qf3 {[%clk 0:00:38.3]}
37... b4 {[%clk 0:00:09.6]} 38. Qb3 {[%clk 0:00:38.6]} 38... Rxf2+ {[%clk
0:00:09.1]} 39. Kg1 {[%clk 0:00:39.3]} 39... Rd2 {[%clk 0:00:06]} 40. Qxb4
{[%clk 0:00:39.7]} 40... Rc2 {[%clk 0:00:06.5]} 41. Qb6 {[%clk 0:00:38.1]} 41...
e5 {[%clk 0:00:05.8]} 42. c6 {[%clk 0:00:38.6]} 42... exd4 {[%clk 0:00:05.3]}
43. Qxd4 {[%clk 0:00:31.7]} 43... Rxc6 {[%clk 0:00:05]} 44. Qxd5 {[%clk
0:00:32.4]} 44... Re6 {[%clk 0:00:05.8]} 45. Kf2 {[%clk 0:00:32.4]} 45... Re5
{[%clk 0:00:06.3]} 46. Qd6 {[%clk 0:00:31.9]} 46... Rg5 {[%clk 0:00:07.2]} 47.
Kf3 {[%clk 0:00:31.2]} 47... Re5 {[%clk 0:00:08.1]} 48. Kf4 {[%clk 0:00:31]}
48... Rg5 {[%clk 0:00:08.7]} 49. Qd8 {[%clk 0:00:26.9]} 49... Re5 {[%clk
0:00:08.5]} 50. g4 {[%clk 0:00:23.5]} 50... Rg5 {[%clk 0:00:07.4]} 51. Qb6
{[%clk 0:00:20.8]} 51... Re5 {[%clk 0:00:07.4]} 52. Qf2 {[%clk 0:00:20.3]} 52...
Rg5 {[%clk 0:00:07.2]} 53. Qh4 {[%clk 0:00:20.9]} 53... Re5 {[%clk 0:00:06.8]}
54. Qh2 {[%clk 0:00:16.4]} 54... Ra5 {[%clk 0:00:05.2]} 55. Qb2 {[%clk
0:00:16.4]} 55... Rg5 {[%clk 0:00:04.2]} 56. Kg3 {[%clk 0:00:16.6]} 56... Re5
{[%clk 0:00:04.2]} 57. Kh4 {[%clk 0:00:16.2]} 57... Rg5 {[%clk 0:00:04.4]} 58.
Qd4 {[%clk 0:00:15.3]} 58... Re5 {[%clk 0:00:04.4]} 59. Kg3 {[%clk 0:00:15.2]}
59... Rg5 {[%clk 0:00:05]} 60. Qf4 {[%clk 0:00:14.9]} 60... Re5 {[%clk
0:00:05.4]} 61. Kf3 {[%clk 0:00:15.7]} 61... Rg5 {[%clk 0:00:05.7]} 62. Ke3
{[%clk 0:00:16.4]} 62... Re5+ {[%clk 0:00:06.3]} 63. Kd4 {[%clk 0:00:17.1]}
63... Ra5 {[%clk 0:00:06]} 64. Qf3 {[%clk 0:00:15]} 64... Rg5 {[%clk 0:00:04.1]}
1/2-1/2

[Event "Early-Titled-Tuesday-Blitz-September-05-2023"]
[Site "Chess.com"]
[Date "2023.09.05"]
[Round "10"]
[White "DrDreBeats"]
[Black "PepeCuenca"]
[Result "0-1"]
[WhiteElo "2556"]
[BlackElo "2699"]
[TimeControl "180+1"]
[EndTime "9:55:21 PDT"]
[Termination "PepeCuenca won by resignation"]

1. e4 {[%clk 0:03:00.9]} 1... c5 {[%clk 0:02:59.9]} 2. Nf3 {[%clk 0:03:00.9]}
2... Nc6 {[%clk 0:02:59.4]} 3. d4 {[%clk 0:03:01.3]} 3... cxd4 {[%clk
0:03:00.3]} 4. Nxd4 {[%clk 0:03:02.1]} 4... e5 {[%clk 0:03:00.9]} 5. Nb5 {[%clk
0:03:01.8]} 5... d6 {[%clk 0:03:01.5]} 6. N1c3 {[%clk 0:03:02.1]} 6... a6 {[%clk
0:03:01.4]} 7. Na3 {[%clk 0:03:01.9]} 7... Be7 {[%clk 0:03:02]} 8. Be3 {[%clk
0:03:00.6]} 8... Rb8 {[%clk 0:02:54.1]} 9. Nd5 {[%clk 0:02:59.9]} 9... b5 {[%clk
0:02:46.5]} 10. c4 {[%clk 0:02:59.1]} 10... b4 {[%clk 0:02:42]} 11. Nc2 {[%clk
0:02:57.9]} 11... Nf6 {[%clk 0:02:38.4]} 12. Bd3 {[%clk 0:02:57.5]} 12... O-O
{[%clk 0:02:28.1]} 13. O-O {[%clk 0:02:56.9]} 13... Ng4 {[%clk 0:02:11.6]} 14.
f3 {[%clk 0:02:51.9]} 14... Nxe3 {[%clk 0:02:09.1]} 15. Ncxe3 {[%clk 0:02:51.7]}
15... Bg5 {[%clk 0:02:02.3]} 16. Qa4 {[%clk 0:02:51.7]} 16... Nd4 {[%clk
0:01:51.7]} 17. Nc2 {[%clk 0:02:45.7]} 17... Nxc2 {[%clk 0:01:25]} 18. Bxc2
{[%clk 0:02:45]} 18... a5 {[%clk 0:01:08.7]} 19. Rad1 {[%clk 0:02:44.3]} 19...
Bd7 {[%clk 0:01:01.9]} 20. Qb3 {[%clk 0:02:44.1]} 20... Qc8 {[%clk 0:00:59.9]}
21. Qd3 {[%clk 0:02:31.1]} 21... Qc5+ {[%clk 0:00:59.5]} 22. Kh1 {[%clk
0:02:31.3]} 22... Be6 {[%clk 0:00:55.9]} 23. b3 {[%clk 0:02:28.7]} 23... Rbd8
{[%clk 0:00:44.6]} 24. Rfe1 {[%clk 0:02:26]} 24... g6 {[%clk 0:00:43.3]} 25. Ne3
{[%clk 0:02:22.7]} 25... Kh8 {[%clk 0:00:34.7]} 26. Nd5 {[%clk 0:02:20.1]} 26...
Rd7 {[%clk 0:00:33.9]} 27. Rf1 {[%clk 0:02:20.3]} 27... Bd8 {[%clk 0:00:19.6]}
28. f4 {[%clk 0:02:13.3]} 28... Bxd5 {[%clk 0:00:19.4]} 29. exd5 {[%clk
0:02:11.4]} 29... f5 {[%clk 0:00:16.3]} 30. fxe5 {[%clk 0:02:08.3]} 30... dxe5
{[%clk 0:00:17.2]} 31. d6 {[%clk 0:02:06.6]} 31... Rf6 {[%clk 0:00:14.8]} 32.
Qd5 {[%clk 0:02:04.2]} 32... Qxd5 {[%clk 0:00:13.7]} 33. Rxd5 {[%clk 0:02:05.1]}
33... Rfxd6 {[%clk 0:00:13]} 34. Rxe5 {[%clk 0:02:04.7]} 34... Rd2 {[%clk
0:00:12.8]} 35. Bb1 {[%clk 0:02:03.6]} 35... Rd1 {[%clk 0:00:12.4]} 36. Ree1
{[%clk 0:02:01.3]} 36... Rxe1 {[%clk 0:00:12.6]} 37. Rxe1 {[%clk 0:02:02.2]}
37... Bb6 {[%clk 0:00:11.6]} 38. g3 {[%clk 0:01:52.6]} 38... Bc5 {[%clk
0:00:11.2]} 39. Re5 {[%clk 0:01:51.4]} 39... Rc7 {[%clk 0:00:05.6]} 40. Kg2
{[%clk 0:01:48.5]} 40... Kg7 {[%clk 0:00:06.2]} 41. Re6 {[%clk 0:01:47.4]} 41...
Kf7 {[%clk 0:00:04.9]} 42. Ra6 {[%clk 0:01:46.6]} 42... Ra7 {[%clk 0:00:05.2]}
43. Rc6 {[%clk 0:01:46.8]} 43... Bd4 {[%clk 0:00:05.8]} 44. Kf3 {[%clk 0:01:41]}
44... Ke7 {[%clk 0:00:06.2]} 45. g4 {[%clk 0:01:40.3]} 45... Kd7 {[%clk
0:00:06.4]} 46. gxf5 {[%clk 0:01:26]} 46... Kxc6 {[%clk 0:00:06.6]} 47. fxg6
{[%clk 0:01:26.3]} 47... hxg6 {[%clk 0:00:07.5]} 48. Bxg6 {[%clk 0:01:26.3]}
48... Rg7 {[%clk 0:00:07.6]} 49. Bf5 {[%clk 0:01:25.5]} 49... Kd6 {[%clk
0:00:07.8]} 50. h4 {[%clk 0:01:25.8]} 50... Ke5 {[%clk 0:00:08.3]} 51. Bd3
{[%clk 0:01:25.7]} 51... Rg1 {[%clk 0:00:08.1]} 52. h5 {[%clk 0:01:25.9]} 52...
Kf6 {[%clk 0:00:08]} 53. Ke4 {[%clk 0:01:25.8]} 53... Bc3 {[%clk 0:00:07]} 54.
c5 {[%clk 0:01:25.8]} 54... Ke7 {[%clk 0:00:06.5]} 55. Kd5 {[%clk 0:01:25]}
55... Kd7 {[%clk 0:00:06.2]} 56. Kc4 {[%clk 0:01:23.9]} 56... Rh1 {[%clk
0:00:05.3]} 57. Bg6 {[%clk 0:01:23.6]} 57... Kc7 {[%clk 0:00:04.5]} 58. Kb5
{[%clk 0:01:22.9]} 58... Rh2 {[%clk 0:00:05]} 59. Kxa5 {[%clk 0:01:19.8]} 59...
Rxa2+ {[%clk 0:00:05.1]} 60. Kb5 {[%clk 0:01:20.3]} 60... Rh2 {[%clk 0:00:05.6]}
61. Bf7 {[%clk 0:01:20.3]} 61... Be1 {[%clk 0:00:04.9]} 62. Bg6 {[%clk
0:01:19.8]} 62... Bd2 {[%clk 0:00:04.3]} 63. Bf7 {[%clk 0:01:19.9]} 63... Rh3
{[%clk 0:00:03.7]} 64. Kc4 {[%clk 0:01:17.4]} 64... Rg3 {[%clk 0:00:03.9]} 65.
Kb5 {[%clk 0:01:16.4]} 65... Rg4 {[%clk 0:00:03.7]} 66. Bg6 {[%clk 0:01:15.4]}
66... Rg5 {[%clk 0:00:03.7]} 67. Bf7 {[%clk 0:01:08.7]} 67... Re5 {[%clk
0:00:04.5]} 68. Kc4 {[%clk 0:01:08.3]} 68... Be3 {[%clk 0:00:04.6]} 69. Kxb4
{[%clk 0:01:07.3]} 69... Bxc5+ {[%clk 0:00:04.6]} 70. Kc4 {[%clk 0:01:07.5]}
70... Be3 {[%clk 0:00:05.5]} 71. b4 {[%clk 0:01:05.8]} 71... Re7 {[%clk
0:00:06]} 72. Bg6 {[%clk 0:01:05.6]} 72... Kb6 {[%clk 0:00:06.9]} 73. Bf5 {[%clk
0:01:02.9]} 73... Bh6 {[%clk 0:00:07.8]} 74. Bg6 {[%clk 0:01:03]} 74... Re1
{[%clk 0:00:07.5]} 75. Bf7 {[%clk 0:01:02.8]} 75... Re4+ {[%clk 0:00:06.9]} 76.
Kb3 {[%clk 0:01:02.4]} 76... Kb5 {[%clk 0:00:06]} 77. Kc3 {[%clk 0:01:00.2]}
77... Rxb4 {[%clk 0:00:05.9]} 78. Kd3 {[%clk 0:01:00.7]} 78... Kc5 {[%clk
0:00:06.6]} 79. Bg8 {[%clk 0:01:00.3]} 79... Rd4+ {[%clk 0:00:07.5]} 80. Ke2
{[%clk 0:01:00.1]} 80... Kd6 {[%clk 0:00:07.5]} 81. Kf3 {[%clk 0:01:00.5]} 81...
Ke5 {[%clk 0:00:07.9]} 82. Bf7 {[%clk 0:01:00.7]} 82... Rf4+ {[%clk 0:00:08]}
0-1

[Event "Early-Titled-Tuesday-Blitz-September-05-2023"]
[Site "Chess.com"]
[Date "2023.09.05"]
[Round "10"]
[White "NelsonLinda"]
[Black "Quattroporte300"]
[Result "1-0"]
[WhiteElo "2488"]
[BlackElo "2396"]
[TimeControl "180+1"]
[EndTime "9:55:22 PDT"]
[Termination "NelsonLinda won on time"]

1. e3 {[%clk 0:02:41.1]} 1... c5 {[%clk 0:02:59.5]} 2. b3 {[%clk 0:02:40.3]}
2... Nc6 {[%clk 0:02:59.5]} 3. Bb2 {[%clk 0:02:40.4]} 3... d6 {[%clk 0:02:59.9]}
4. Nf3 {[%clk 0:02:40.9]} 4... e5 {[%clk 0:03:00.4]} 5. Bb5 {[%clk 0:02:39.6]}
5... Bd7 {[%clk 0:02:59]} 6. d3 {[%clk 0:02:39.1]} 6... a6 {[%clk 0:02:59.4]} 7.
Bxc6 {[%clk 0:02:39.3]} 7... Bxc6 {[%clk 0:02:59.7]} 8. O-O {[%clk 0:02:39.1]}
8... Nf6 {[%clk 0:02:59.6]} 9. Nbd2 {[%clk 0:02:39.2]} 9... Be7 {[%clk
0:02:59.3]} 10. Qe2 {[%clk 0:02:39.6]} 10... O-O {[%clk 0:02:59.6]} 11. Rfd1
{[%clk 0:02:39.8]} 11... b5 {[%clk 0:02:58.9]} 12. c4 {[%clk 0:02:36.9]} 12...
Re8 {[%clk 0:02:57.8]} 13. Rac1 {[%clk 0:02:36.4]} 13... Bf8 {[%clk 0:02:56.6]}
14. Ng5 {[%clk 0:02:28.9]} 14... h6 {[%clk 0:02:54.4]} 15. Nge4 {[%clk
0:02:29.2]} 15... Nxe4 {[%clk 0:02:53.6]} 16. dxe4 {[%clk 0:02:28.2]} 16... Qf6
{[%clk 0:02:50]} 17. f3 {[%clk 0:02:28.1]} 17... Kh7 {[%clk 0:02:48.5]} 18. Nb1
{[%clk 0:02:26.7]} 18... b4 {[%clk 0:02:45.2]} 19. a4 {[%clk 0:02:23.6]} 19...
Qg6 {[%clk 0:02:39.6]} 20. Nd2 {[%clk 0:02:21.8]} 20... Be7 {[%clk 0:02:38.5]}
21. Nf1 {[%clk 0:02:20.5]} 21... f5 {[%clk 0:02:33.6]} 22. exf5 {[%clk
0:02:20.3]} 22... Qxf5 {[%clk 0:02:34.1]} 23. e4 {[%clk 0:02:20.2]} 23... Qg6
{[%clk 0:02:32.3]} 24. Rc2 {[%clk 0:02:20.3]} 24... Rf8 {[%clk 0:02:31.6]} 25.
Rcd2 {[%clk 0:02:17.1]} 25... Rf7 {[%clk 0:02:21.6]} 26. Rd3 {[%clk 0:02:16.6]}
26... Raf8 {[%clk 0:02:21.3]} 27. Kh1 {[%clk 0:02:16.8]} 27... h5 {[%clk
0:02:07.8]} 28. Ne3 {[%clk 0:02:12.5]} 28... h4 {[%clk 0:01:52.2]} 29. h3 {[%clk
0:02:08.1]} 29... Qg3 {[%clk 0:01:33.9]} 30. Ng4 {[%clk 0:02:06.6]} 30... Bd7
{[%clk 0:01:24.2]} 31. Nf2 {[%clk 0:01:52.9]} 31... Rf6 {[%clk 0:01:09.4]} 32.
Bc1 {[%clk 0:01:37]} 32... Rg6 {[%clk 0:01:07.4]} 33. Rg1 {[%clk 0:01:33.8]}
33... Be6 {[%clk 0:00:50.1]} 34. Qe1 {[%clk 0:01:33.8]} 34... Rf7 {[%clk
0:00:46.6]} 35. Nd1 {[%clk 0:01:26.3]} 35... Qxe1 {[%clk 0:00:33.7]} 36. Rxe1
{[%clk 0:01:27.2]} 36... Rg3 {[%clk 0:00:33.5]} 37. Kh2 {[%clk 0:01:24.1]} 37...
Rg6 {[%clk 0:00:28.5]} 38. Be3 {[%clk 0:01:23.4]} 38... Bc8 {[%clk 0:00:27.2]}
39. Re2 {[%clk 0:01:23.6]} 39... Re6 {[%clk 0:00:25.2]} 40. Nf2 {[%clk
0:01:22.8]} 40... g5 {[%clk 0:00:24.1]} 41. Red2 {[%clk 0:01:21.9]} 41... Rg6
{[%clk 0:00:22.7]} 42. Rd1 {[%clk 0:01:20.6]} 42... Be6 {[%clk 0:00:22.5]} 43.
R1d2 {[%clk 0:01:19.8]} 43... Bc8 {[%clk 0:00:22.9]} 44. Nd1 {[%clk 0:01:20.1]}
44... Be6 {[%clk 0:00:22.9]} 45. Bf2 {[%clk 0:01:20.4]} 45... Rgf6 {[%clk
0:00:20]} 46. Be3 {[%clk 0:01:17.4]} 46... Rg6 {[%clk 0:00:20.1]} 47. Bf2 {[%clk
0:01:15.8]} 47... Kg8 {[%clk 0:00:19.9]} 48. Ne3 {[%clk 0:01:14.8]} 48... Kh7
{[%clk 0:00:18.2]} 49. Rxd6 {[%clk 0:01:00.2]} 49... Bxd6 {[%clk 0:00:18]} 50.
Rxd6 {[%clk 0:01:01.1]} 50... Bc8 {[%clk 0:00:15.9]} 51. Rxg6 {[%clk 0:01:00.7]}
51... Kxg6 {[%clk 0:00:15.8]} 52. Nd5 {[%clk 0:01:01.3]} 52... Be6 {[%clk
0:00:14.7]} 53. Bxc5 {[%clk 0:01:01.3]} 53... Bxd5 {[%clk 0:00:14.8]} 54. exd5
{[%clk 0:00:58.8]} 54... Kf6 {[%clk 0:00:14.2]} 55. Kg1 {[%clk 0:00:55]} 55...
Rb7 {[%clk 0:00:14.6]} 56. Kf2 {[%clk 0:00:51.9]} 56... e4 {[%clk 0:00:09.8]}
57. fxe4 {[%clk 0:00:52.1]} 57... Ke5 {[%clk 0:00:10.4]} 58. Ke3 {[%clk
0:00:52.6]} 58... a5 {[%clk 0:00:05.7]} 59. Bd4+ {[%clk 0:00:49.9]} 59... Kd6
{[%clk 0:00:06.6]} 60. c5+ {[%clk 0:00:43.8]} 60... Ke7 {[%clk 0:00:05.2]} 61.
Kd3 {[%clk 0:00:40.2]} 61... Rb8 {[%clk 0:00:05.5]} 62. Be5 {[%clk 0:00:36.5]}
62... Rf8 {[%clk 0:00:05.6]} 63. c6 {[%clk 0:00:28.7]} 63... Rf2 {[%clk
0:00:04]} 64. d6+ {[%clk 0:00:27.4]} 64... Kd8 {[%clk 0:00:02.6]} 65. d7 {[%clk
0:00:24.7]} 65... g4 {[%clk 0:00:01.4]} 66. hxg4 {[%clk 0:00:24.5]} 66... Rxg2
{[%clk 0:00:01.4]} 67. Bf6+ {[%clk 0:00:24.4]} 1-0